Workbook

Sheet 封面
A1: 2022年部门预算公开表
D4: 单位编码： | E4: 423001
D5: 单位名称： | E5: 岳阳县自然资源局

Sheet 目录
B1: 部门预算公开表
B3: 一、部门预算报表
B4: 1 | C4: 收支总表
B5: 2 | C5: 收入总表
B6: 3 | C6: 支出总表
B7: 4 | C7: 支出预算分类汇总表（按政府预算经济分类）
B8: 5 | C8: 支出预算分类汇总表（按部门预算经济分类）
B9: 6 | C9: 财政拨款收支总表
B10: 7 | C10: 一般公共预算支出表
B11: 8 | C11: 一般公共预算基本支出表
B12: 9 | C12: 一般公共预算基本支出表--人员经费(工资福利支出)(按政府预算经济分类)
B13: 10 | C13: 一般公共预算基本支出表--人员经费(工资福利支出)(按部门预算经济分类)
B14: 11 | C14: 一般公共预算基本支出表--人员经费(对个人和家庭的补助)(按政府预算经济分类)
B15: 12 | C15: 一般公共预算基本支出表--人员经费(对个人和家庭的补助)（按部门预算经济分类）
B16: 13 | C16: 一般公共预算基本支出表--公用经费(商品和服务支出)（按政府预算经济分类）
B17: 14 | C17: 一般公共预算基本支出表--公用经费(商品和服务支出)(按部门预算经济分类)
B18: 15 | C18: 一般公共预算“三公”经费支出表
B19: 16 | C19: 政府性基金预算支出表
B20: 17 | C20: 政府性基金预算支出分类汇总表（按政府预算经济分类）
B21: 18 | C21: 政府性基金预算支出分类汇总表（按部门预算经济分类）
B22: 19 | C22: 国有资本经营预算表
B23: 20 | C23: 财政专户管理资金预算支出表
B24: 21 | C24: 专项资金预算汇总表
B25: 22 | C25: 其他项目支出绩效目标表
B26: 23 | C26: 部门整体支出绩效目标表

Sheet 1收支总表
A2: 收支总表
A3: 单位：423001-岳阳县自然资源局 | G3: 金额单位：万元
A4: 收入 | C4: 支出
A5: 项目 | B5: 预算数 | C5: 项目（按功能分类） | D5: 预算数 | E5: 项目（按部门预算经济分类） | F5: 预算数 | G5: 项目（按政府预算经济分类） | H5: 预算数
A6: 一、一般公共预算拨款收入 | B6: 4,160.41 | C6: （一）一般公共服务支出 | E6: 一、基本支出 | F6: 3,640.41 | G6: 一、机关工资福利支出 | H6: 3,473.83
A7: 经费拨款 | B7: 3,360.41 | C7: （二）外交支出 | E7: 工资福利支出 | F7: 3,463.83 | G7: 二、机关商品和服务支出 | H7: 686.58
A8: 纳入一般公共预算管理的非税收入拨款 | B8: 800.00 | C8: （三）国防支出 | E8: 商品和服务支出 | F8: 176.58 | G8: 三、机关资本性支出（一）
A9: 行政事业性收费收入 | C9: （四）公共安全支出 | E9: 对个人和家庭的补助 | G9: 四、机关资本性支出（二）
A10: 专项收入 | C10: （五）教育支出 | E10: 二、项目支出 | F10: 520.00 | G10: 五、对事业单位经常性补助
A11: 国有资本经营收入 | C11: （六）科学技术支出 | E11: 按项目管理的工资福利支出 | F11: 10.00 | G11: 六、对事业单位资本性补助
A12: 国有资源（资产）有偿使用收入 | C12: （七）文化旅游体育与传媒支出 | E12: 按项目管理的商品和服务支出 | F12: 510.00 | G12: 七、对企业补助
A13: 罚没收入 | C13: （八）社会保障和就业支出 | D13: 313.97 | E13: 按项目管理的对个人和家庭的补助 | G13: 八、对企业资本性支出
A14: 捐赠收入 | C14: （九）社会保险基金支出 | E14: 债务利息及费用支出 | G14: 九、对个人和家庭的补助
A15: 政府住房基金收入 | C15: （十）卫生健康支出 | D15: 156.98 | E15: 资本性支出（基本建设） | G15: 十、对社会保障基金补助
A16: 其他纳入一般公共预算管理的非税收入 | C16: （十一）节能环保支出 | E16: 资本性支出 | G16: 十一、债务利息及费用支出
A17: 一般债券 | C17: （十二）城乡社区支出 | E17: 对企业补助（基本建设） | G17: 十二、债务还本支出
A18: 外国政府和国际组织贷款 | C18: （十三）农林水支出 | E18: 对企业补助 | G18: 十三、转移性支出
A19: 外国政府和国际组织捐赠 | C19: （十四）交通运输支出 | E19: 对社会保障基金补助 | G19: 十四、其他支出
A20: 二、政府性基金预算拨款收入 | C20: （十五）资源勘探工业信息等支出 | E20: 其他支出
A21: 三、国有资本经营预算拨款收入 | C21: （十六）商业服务业等支出 | E21: 三、事业单位经营服务支出
A22: 四、社会保障基金预算资金 | C22: （十七）金融支出
A23: 五、财政专户管理资金收入 | C23: （十八）援助其他地区支出
A24: 六、上级财政补助收入 | C24: （十九）自然资源海洋气象等支出 | D24: 3,467.83
A25: 一般公共预算补助 | C25: （二十）住房保障支出 | D25: 221.63
A26: 政府性基金补助 | C26: （二十一）粮油物资储备支出
A27: 国有资本经营预算补助 | C27: （二十二）国有资本经营预算支出
A28: 七、事业收入 | C28: （二十三）灾害防治及应急管理支出
A29: 八、事业单位经营收入 | C29: （二十四）预备费
A30: 九、上级单位补助收入 | C30: （二十五）其他支出
A31: 十、附属单位上缴收入 | C31: （二十六）转移性支出
A32: 十一、其他收入 | C32: （二十七）债务还本支出
C33: （二十八）债务付息支出
C34: （二十九）债务发行费用支出
C35: （三十）抗疫特别国债安排的支出
A37: 本 年 收 入 合 计 | B37: 4,160.41 | C37: 本 年 支 出 合 计 | D37: 4,160.41 | E37: 本 年 支 出 合 计 | F37: 4,160.41 | G37: 本 年 支 出 合 计 | H37: 4,160.41
A38: 上年结转结余 | C38: 年终结转结余 | E38: 年终结转结余 | G38: 年终结转结余
A40: 收 入 总 计 | B40: 4,160.41 | C40: 支 出 总 计 | D40: 4,160.41 | E40: 支 出 总 计 | F40: 4,160.41 | G40: 支 出 总 计 | H40: 4,160.41

Sheet 2收入总表
A2: 收入总表
A3: 单位：423001-岳阳县自然资源局 | X3: 金额单位：万元
A4: 部门（单位）代码 | B4: 部门（单位）名称 | C4: 合计 | D4: 本年收入 | S4: 上年结转结余
D5: 小计 | E5: 一般公共预算 | F5: 政府性基金预算 | G5: 国有资本经营预算 | H5: 社会保险基金预算资金 | I5: 财政专户管理资金 | J5: 上级财政补助收入 | N5: 事业收入 | O5: 事业单位经营收入 | P5: 上级单位补助收入 | Q5: 附属单位上缴收入 | R5: 其他收入 | S5: 小计 | T5: 一般公共预算 | U5: 政府性基金预算 | V5: 国有资本经营预算 | W5: 社会保险基金预算资金 | X5: 财政专户管理资金 | Y5: 单位资金
J6: 一般公共预算补助 | K6: 政府性基金补助 | L6: 国有资本经营预算补助 | M6: 社会保险基金预算资金
B7: 合计 | C7: 4,160.41 | D7: 4,160.41 | E7: 4,160.41
A8: 423 | B8: 岳阳县自然资源局 | C8: 4,160.41 | D8: 4,160.41 | E8: 4,160.41
A9: 423001 | B9: 岳阳县自然资源局 | C9: 4,160.41 | D9: 4,160.41 | E9: 4,160.41

Sheet 3支出总表
A2: 支出总表
A3: 单位：423001-岳阳县自然资源局 | K3: 金额单位：万元
A4: 功能科目 | D4: 科目编码 | E4: 科目名称 | F4: 合计 | G4: 基本支出 | H4: 项目支出 | I4: 事业单位经营支出 | J4: 上缴上级支出 | K4: 对附属单位补助支出
A5: 类 | B5: 款 | C5: 项
D6: 合计 | F6: 4,160.41 | G6: 3,640.41 | H6: 520.00
D7: 423 | E7: 岳阳县自然资源局 | F7: 4,160.41 | G7: 3,640.41 | H7: 520.00
D8: 423001 | E8: 岳阳县自然资源局 | F8: 4,160.41 | G8: 3,640.41 | H8: 520.00
A9: 208 | D9: 208 | E9: 社会保障和就业支出 | F9: =G9+H9 -> 313.97 | G9: =G10+G12 -> 313.97
A10: 208 | B10: 05 | D10: 20805 | E10: 行政事业单位养老支出 | F10: 295.50 | G10: =G11 -> 295.50
A11: 208 | B11: 05 | C11: 05 | D11: 2080505 | E11: 机关事业单位基本养老保险缴费支出 | F11: 295.50 | G11: 295.50
A12: 208 | B12: 99 | D12: 20899 | E12: 其他社会保障和就业支出 | F12: 18.47 | G12: =G13 -> 18.47
A13: 208 | B13: 99 | C13: 99 | D13: 2089999 | E13: 其他社会保障和就业支出 | F13: 18.47 | G13: 18.47
A14: 210 | D14: 210 | E14: 卫生健康支出 | F14: =G14+H14 -> 156.98 | G14: =G15 -> 156.98
A15: 210 | B15: 11 | D15: 21011 | E15: 行政事业单位医疗 | F15: =G15+H15 -> 156.98 | G15: =G16 -> 156.98
A16: 210 | B16: 11 | C16: 01 | D16: 2101101 | E16: 行政单位医疗 | F16: 156.99 | G16: 156.98
A17: 220 | D17: 220 | E17: 自然资源海洋气象等支出 | F17: =G17+H17 -> 2,947.83 | G17: =G18 -> 2,947.83
A18: 220 | B18: 01 | D18: 22001 | E18: 自然资源事务 | F18: =G18+H18 -> 3,467.83 | G18: =SUM(G19:G24) -> 2,947.83 | H18: =SUM(H19:H24) -> 520.00
A19: 220 | B19: 01 | C19: 01 | D19: 2200101 | E19: 行政运行 | F19: 2,947.83 | G19: 2,947.83
A20: 220 | B20: 01 | C20: 03 | D20: 2200103 | E20: 机关服务 | F20: 270.00 | H20: 270.00
A21: 220 | B21: 01 | C21: 04 | D21: 2200104 | E21: 自然资源规划及管理 | F21: 80.00 | H21: 80.00
A22: 220 | B22: 01 | C22: 06 | D22: 2200106 | E22: 自然资源利用与保护 | F22: 130.00 | H22: 130.00
A23: 220 | B23: 01 | C23: 07 | D23: 2200107 | E23: 自然资源社会公益服务 | F23: 30.00 | H23: 30.00
A24: 220 | B24: 01 | C24: 99 | D24: 2200199 | E24: 其他自然资源事务支出 | F24: 10.00 | H24: 10.00
A25: 221 | D25: 221 | E25: 住房保障支出 | F25: =G25+H25 -> 221.63 | G25: =G26 -> 221.63
A26: 221 | B26: 02 | D26: 22102 | E26: 住房改革支出 | F26: =G26+H26 -> 221.63 | G26: =G27 -> 221.63
A27: 221 | B27: 02 | C27: 01 | D27: 2210201 | E27: 住房公积金 | F27: 221.63 | G27: 221.63

Sheet 4支出分类(政府预算)
A2: 支出预算分类汇总表（按政府预算经济分类）
A3: 单位：423001-岳阳县自然资源局 | S3: 金额单位：万元
A4: 功能科目 | D4: 单位代码 | E4: 单位名称（功能科目） | F4: 总 计 | G4: 机关工资福利支出 | H4: 机关商品和服务支出 | I4: 机关资本性支出(一) | J4: 机关资本性支出(二) | K4: 对事业单位经常性补助 | L4: 对事业单位资本性补助 | M4: 对企业补助 | N4: 对企业资本性支出 | O4: 对个人和家庭的补助 | P4: 对社会保障基金补助 | Q4: 债务利息及费用支出 | R4: 债务还本支出 | S4: 转移性支出 | T4: 其他支出
A5: 类 | B5: 款 | C5: 项
E6: 合计 | F6: 4,160.41 | G6: 3,473.83 | H6: 686.58
D7: 423 | E7: 岳阳县自然资源局 | F7: 4,160.41 | G7: 3,473.83 | H7: 686.58
D8: 423001 | E8: 岳阳县自然资源局 | F8: 4,160.41 | G8: 3,473.83 | H8: 686.58
A9: 220 | B9: 01 | C9: 01 | D9: 423001 | E9: 行政运行 | F9: 2,947.83 | G9: 2,771.25 | H9: 176.58
A10: 208 | B10: 05 | C10: 05 | D10: 423001 | E10: 机关事业单位基本养老保险缴费支出 | F10: 295.50 | G10: 295.50
A11: 208 | B11: 99 | C11: 99 | D11: 423001 | E11: 其他社会保障和就业支出 | F11: 18.47 | G11: 18.47
A12: 210 | B12: 11 | C12: 01 | D12: 423001 | E12: 行政单位医疗 | F12: 156.99 | G12: 156.99
A13: 221 | B13: 02 | C13: 01 | D13: 423001 | E13: 住房公积金 | F13: 221.63 | G13: 221.63
A14: 220 | B14: 01 | C14: 06 | D14: 423001 | E14: 自然资源利用与保护 | F14: 130.00 | H14: 130.00
A15: 220 | B15: 01 | C15: 99 | D15: 423001 | E15: 其他自然资源事务支出 | F15: 10.00 | G15: 10.00
A16: 220 | B16: 01 | C16: 07 | D16: 423001 | E16: 自然资源社会公益服务 | F16: 30.00 | H16: 30.00
A17: 220 | B17: 01 | C17: 03 | D17: 423001 | E17: 机关服务 | F17: 270.00 | H17: 270.00
A18: 220 | B18: 01 | C18: 04 | D18: 423001 | E18: 自然资源规划及管理 | F18: 80.00 | H18: 80.00

Sheet 5支出分类（部门预算）
A2: 支出预算分类汇总表（按部门预算经济分类）
A3: 单位：423001-岳阳县自然资源局 | T3: 金额单位：万元
A4: 功能科目 | D4: 单位代码 | E4: 单位名称（功能科目） | F4: 总 计 | G4: 基本支出 | K4: 项目支出
A5: 类 | B5: 款 | C5: 项 | G5: 合计 | H5: 工资福利支出 | I5: 一般商品和服务支出 | J5: 对个人和家庭的补助 | K5: 合计 | L5: 按项目管理的工资福利支出 | M5: 按项目管理的商品和服务支出 | N5: 按项目管理的对个人和家庭的补助 | O5: 债务利息及费用支出 | P5: 资本性支出（基本建设） | Q5: 资本性支出 | R5: 对企业补助（基本建设） | S5: 对企业补助 | T5: 对社会保障基金补助 | U5: 其他支出
E6: 合计 | F6: 4,160.41 | G6: 3,640.41 | H6: 3,463.83 | I6: 176.58 | J6: 0.00 | K6: 520.00 | L6: 10.00 | M6: 510.00
D7: 423 | E7: 岳阳县自然资源局 | F7: 4,160.41 | G7: 3,640.41 | H7: 3,463.83 | I7: 176.58 | J7: 0.00 | K7: 520.00 | L7: 10.00 | M7: 510.00
D8: 423001 | E8: 岳阳县自然资源局 | F8: 4,160.41 | G8: 3,640.41 | H8: 3,463.83 | I8: 176.58 | J8: 0.00 | K8: 520.00 | L8: 10.00 | M8: 510.00
A9: 220 | B9: 01 | C9: 01 | D9: 423001 | E9: 行政运行 | F9: 2,947.83 | G9: 2,947.83 | H9: 2,771.25 | I9: 176.58
A10: 208 | B10: 05 | C10: 05 | D10: 423001 | E10: 机关事业单位基本养老保险缴费支出 | F10: 295.50 | G10: 295.50 | H10: 295.50
A11: 208 | B11: 99 | C11: 99 | D11: 423001 | E11: 其他社会保障和就业支出 | F11: 18.47 | G11: 18.47 | H11: 18.47
A12: 210 | B12: 11 | C12: 01 | D12: 423001 | E12: 行政单位医疗 | F12: 156.99 | G12: 156.99 | H12: 156.99
A13: 221 | B13: 02 | C13: 01 | D13: 423001 | E13: 住房公积金 | F13: 221.63 | G13: 221.63 | H13: 221.63
A14: 220 | B14: 01 | C14: 06 | D14: 423001 | E14: 自然资源利用与保护 | F14: 130.00 | K14: 130.00 | M14: 130.00
A15: 220 | B15: 01 | C15: 99 | D15: 423001 | E15: 其他自然资源事务支出 | F15: 10.00 | K15: 10.00 | L15: 10.00
A16: 220 | B16: 01 | C16: 07 | D16: 423001 | E16: 自然资源社会公益服务 | F16: 30.00 | K16: 30.00 | M16: 30.00
A17: 220 | B17: 01 | C17: 03 | D17: 423001 | E17: 机关服务 | F17: 270.00 | K17: 270.00 | M17: 270.00
A18: 220 | B18: 01 | C18: 04 | D18: 423001 | E18: 自然资源规划及管理 | F18: 80.00 | K18: 80.00 | M18: 80.00

Sheet 6财政拨款收支总表
A2: 财政拨款收支总表
A3: 单位：423001-岳阳县自然资源局 | D3: 金额单位：万元
A4: 收入 | C4: 支出
A5: 项目 | B5: 预算数 | C5: 项目 | D5: 预算数
A6: 一、本年收入 | B6: 4,160.41 | C6: 一、本年支出 | D6: 4,160.41
A7: （一）一般公共预算拨款 | B7: 4,160.41 | C7: （一）一般公共服务支出
A8: 经费拨款 | B8: 3,360.41 | C8: （二）外交支出
A9: 纳入一般公共预算管理的非税收入拨款 | B9: 800.00 | C9: （三）国防支出
A10: （二）政府性基金预算拨款 | C10: （四）公共安全支出
A11: （三）国有资本经营预算拨款 | C11: （五）教育支出
A12: （四）社会保险基金预算资金 | C12: （六）科学技术支出
A13: 二、上年结转 | C13: （七）文化旅游体育与传媒支出
A14: （一）一般公共预算拨款 | C14: （八）社会保障和就业支出 | D14: 313.97
A15: （二）政府性基金预算拨款 | C15: （九）社会保险基金支出
A16: （三）国有资本经营预算拨款 | C16: （十）卫生健康支出 | D16: 156.99
A17: （四）社会保险基金预算资金 | C17: （十一）节能环保支出
C18: （十二）城乡社区支出
C19: （十三）农林水支出
C20: （十四）交通运输支出
C21: （十五）资源勘探工业信息等支出
C22: （十六）商业服务业等支出
C23: （十七）金融支出
C24: （十八）援助其他地区支出
C25: （十九）自然资源海洋气象等支出 | D25: 3,467.83
C26: （二十）住房保障支出 | D26: 221.63
C27: （二十一）粮油物资储备支出
C28: （二十二）国有资本经营预算支出
C29: （二十三）灾害防治及应急管理支出
C30: （二十四）预备费
C31: （二十五）其他支出
C32: （二十六）转移性支出
C33: （二十七）债务还本支出
C34: （二十八）债务付息支出
C35: （二十九）债务发行费用支出
C36: （三十）抗疫特别国债安排的支出
C38: 二、年终结转结余
A40: 收 入 总 计 | B40: 4,160.41 | C40: 支 出 总 计 | D40: 4,160.41

Sheet 7一般公共预算支出表
A2: 一般公共预算支出表
A3: 单位：423001-岳阳县自然资源局 | J3: 金额单位：万元
A4: 功能科目 | D4: 科目编码 | E4: 科目名称 | F4: 合计 | G4: 基本支出 | K4: 项目支出
G5: 小计 | H5: 人员经费 | J5: 公用经费
A6: 类 | B6: 款 | C6: 项 | H6: 工资福利支出 | I6: 对个人和家庭的补助
E7: 合计 | F7: 4,160.41 | G7: 3,640.41 | H7: 3,463.83 | J7: 176.58 | K7: 520.00
D8: 423 | E8: 岳阳县自然资源局 | F8: 4,160.41 | G8: 3,640.41 | H8: 3,463.83 | J8: 176.58 | K8: 520.00
D9: 423001 | E9: 岳阳县自然资源局 | F9: 4,160.41 | G9: 3,640.41 | H9: 3,463.83 | J9: 176.58 | K9: 520.00
A10: 208 | D10: 208 | E10: 社会保障和就业支出 | F10: =G10+K10 ->  | G10: =H10+#REF!+I10+J10 ->  | H10: =H11+H13 -> 313.97
A11: 208 | B11: 05 | D11: =A11&B11 -> 20805 | E11: 行政事业单位养老支出 | F11: =G11+K11 ->  | G11: =H11+#REF!+I11+J11 ->  | H11: =H12 -> 295.50
A12: 208 | B12: 05 | C12: 05 | D12: 2080505 | E12: 机关事业单位基本养老保险缴费支出 | F12: 295.50 | G12: 295.50 | H12: 295.50
A13: 208 | B13: 99 | D13: 20899 | E13: 其他社会保障和就业支出 | F13: =G13+K13 ->  | G13: =H13+#REF!+I13+J13 ->  | H13: =H14 -> 18.47
A14: 208 | B14: 99 | C14: 99 | D14: 2089999 | E14: 其他社会保障和就业支出 | F14: 18.47 | G14: 18.47 | H14: 18.47
A15: 210 | D15: 210 | E15: 卫生健康支出 | F15: =G15+K15 ->  | G15: =H15+#REF!+I15+J15 ->  | H15: =H16 -> 156.98
A16: 210 | B16: 11 | D16: 21011 | E16: 行政事业单位医疗 | F16: =G16+K16 ->  | G16: =H16+#REF!+I16+J16 ->  | H16: =H17 -> 156.98
A17: 210 | B17: 11 | C17: 01 | D17: 2101101 | E17: 行政单位医疗 | F17: 156.99 | G17: 156.99 | H17: 156.98
A18: 220 | D18: 220 | E18: 自然资源海洋气象等支出 | F18: =G18+K18 ->  | G18: =H18+#REF!+I18+J18 ->  | H18: =H19 -> 2,771.25 | J18: =J19 -> 176.58 | K18: =K19 -> 520.00
A19: 220 | B19: 01 | D19: 22001 | E19: 自然资源事务 | F19: =G19+K19 -> 3,467.83 | G19: =SUM(G20:G25) -> 2,947.83 | H19: =SUM(H20:H25) -> 2,771.25 | J19: =SUM(J20:J25) -> 176.58 | K19: =SUM(K20:K25) -> 520.00
A20: 220 | B20: 01 | C20: 01 | D20: 2200101 | E20: 行政运行 | F20: 2,947.83 | G20: 2,947.83 | H20: 2,771.25 | J20: 176.58
A21: 220 | B21: 01 | C21: 03 | D21: 2200103 | E21: 机关服务 | F21: 270.00 | K21: 270.00
A22: 220 | B22: 01 | C22: 04 | D22: 2200104 | E22: 自然资源规划及管理 | F22: 80.00 | K22: 80.00
A23: 220 | B23: 01 | C23: 06 | D23: 2200106 | E23: 自然资源利用与保护 | F23: 130.00 | K23: 130.00
A24: 220 | B24: 01 | C24: 07 | D24: 2200107 | E24: 自然资源社会公益服务 | F24: 30.00 | K24: 30.00
A25: 220 | B25: 01 | C25: 99 | D25: 2200199 | E25: 其他自然资源事务支出 | F25: 10.00 | K25: 10.00
A26: 221 | D26: 221 | E26: 住房保障支出 | F26: =G26+K26 ->  | G26: =H26+#REF!+I26+J26 ->  | H26: =H27 -> 221.63
A27: 221 | B27: 02 | D27: 22102 | E27: 住房改革支出 | F27: =G27+K27 ->  | G27: =H27+#REF!+I27+J27 ->  | H27: =H28 -> 221.63
A28: 221 | B28: 02 | C28: 01 | D28: 2210201 | E28: 住房公积金 | F28: 221.63 | G28: 221.63 | H28: 221.63

Sheet 8一般公共预算基本支出表
A1: 一般公共预算基本支出表
A2: 单位：423001-岳阳县自然资源局 | E2: 金额单位：万元
A3: 部门预算支出经济分类科目 | C3: 本年一般公共预算基本支出
A4: 科目编码 | B4: 科目名称 | C4: 合计 | D4: 人员经费 | E4: 公用经费
A5: 301 | B5: 工资福利支出 | C5: =D5+E5 -> 3,463.83 | D5: =SUM(D6:D13) -> 3,463.83 | E5: =SUM(E6:E13) -> 0
A6: 30101 | B6: 基本工资 | C6: =D6+E6 -> 1,173.69 | D6: 1,173.69
A7: 30102 | B7: 津贴补贴 | C7: 1,039.72 | D7: 1,039.72
A8: 30107 | B8: 绩效工资 | C8: 557.84 | D8: 557.84
A9: 30108 | B9: 机关事业单位基本养老保险缴费 | C9: 295.50 | D9: 295.50
A10: 30110 | B10: 职工基本医疗保险缴费 | C10: 138.52 | D10: 138.52
A11: 30111 | B11: 公务员医疗补助缴费 | C11: 18.47 | D11: 18.47
A12: 30112 | B12: 其他社会保障缴费 | C12: 18.47 | D12: 18.47
A13: 30113 | B13: 住房公积金 | C13: 221.63 | D13: 221.63
A14: 302 | B14: 商品和服务支出 | C14: 176.58 | D14: =SUM(D15:D25) -> 0 | E14: =SUM(E15:E25) -> 176.58
A15: 30201 | B15: 办公费 | C15: 29.34 | E15: 29.34
A16: 30202 | B16: 印刷费 | C16: 16.52 | E16: 16.52
A17: 30205 | B17: 水费 | C17: 4.89 | E17: 4.89
A18: 30206 | B18: 电费 | C18: 19.56 | E18: 19.56
A19: 30207 | B19: 邮电费 | C19: 7.51 | E19: 7.51
A20: 30211 | B20: 差旅费 | C20: 39.12 | E20: 39.12
A21: 30212 | B21: 因公出国（境）费用 | C21: 0
A22: 30213 | B22: 维修（护）费 | C22: 6.52 | E22: 6.52
A23: 30215 | B23: 会议费 | C23: 5.00 | E23: 5.00
A24: 30216 | B24: 培训费 | C24: 0
A25: 30217 | B25: 公务接待费 | C25: 48.12 | E25: 48.12
A26: 合计 | C26: =C14+C5 -> 3,640.41 | D26: =D14+D5 -> 3,463.83 | E26: 176.58

Sheet 9工资福利(政府预算)
A2: 一般公共预算基本支出表--人员经费(工资福利支出)(按政府预算经济分类)
A3: 单位：423001-岳阳县自然资源局 | M3: 金额单位：万元
A4: 功能科目 | D4: 单位代码 | E4: 单位名称（功能科目） | F4: 总 计 | G4: 机关工资福利支出 | L4: 对事业单位经常性补助
A5: 类 | B5: 款 | C5: 项 | G5: 合计 | H5: 工资奖金津补贴 | I5: 社会保障缴费 | J5: 住房公积金 | K5: 其他工资福利支出 | L5: 合计 | M5: 工资福利支出 | N5: 其他对事业单位补助
E6: 合计 | F6: 3,463.83 | G6: 3,463.83 | H6: 2,771.25 | I6: 470.96 | J6: 221.63
D7: 423 | E7: 岳阳县自然资源局 | F7: 3,463.83 | G7: 3,463.83 | H7: 2,771.25 | I7: 470.96 | J7: 221.63
D8: 423001 | E8: 岳阳县自然资源局 | F8: 3,463.83 | G8: 3,463.83 | H8: 2,771.25 | I8: 470.96 | J8: 221.63
A9: 208 | B9: 05 | C9: 05 | D9: 423001 | E9: 机关事业单位基本养老保险缴费支出 | F9: 295.50 | G9: 295.50 | I9: 295.50
A10: 208 | B10: 99 | C10: 99 | D10: 423001 | E10: 其他社会保障和就业支出 | F10: 18.47 | G10: 18.47 | I10: 18.47
A11: 210 | B11: 11 | C11: 01 | D11: 423001 | E11: 行政单位医疗 | F11: 156.99 | G11: 156.99 | I11: 156.99
A12: 220 | B12: 01 | C12: 01 | D12: 423001 | E12: 行政运行 | F12: 2,771.25 | G12: 2,771.25 | H12: 2,771.25
A13: 221 | B13: 02 | C13: 01 | D13: 423001 | E13: 住房公积金 | F13: 221.63 | G13: 221.63 | J13: 221.63

Sheet 10工资福利
A2: 一般公共预算基本支出表--人员经费(工资福利支出)(按部门预算经济分类)
A3: 单位：423001-岳阳县自然资源局 | U3: 金额单位：万元
A4: 功能科目 | D4: 单位代码 | E4: 单位名称（功能科目） | F4: 总 计 | G4: 工资津补贴 | L4: 社会保障缴费 | R4: 住房公积金 | S4: 其他工资福利支出
A5: 类 | B5: 款 | C5: 项 | G5: 合计 | H5: 基本工资 | I5: 津贴补贴 | J5: 奖金 | K5: 绩效工资 | L5: 合计 | M5: 机关事业单位基本养老保险缴费 | N5: 职业年金缴费 | O5: 职工基本医疗保险缴费 | P5: 公务员医疗补助缴费 | Q5: 其他社会保障缴费 | S5: 合计 | T5: 伙食补助费 | U5: 医疗费 | V5: 其他工资福利支出
E6: 合计 | F6: 3,463.83 | G6: 2,771.25 | H6: 1,173.69 | I6: 1,039.72 | K6: 557.84 | L6: 470.96 | M6: 295.50 | O6: 138.52 | P6: 18.47 | Q6: 18.47 | R6: 221.63
D7: 423 | E7: 岳阳县自然资源局 | F7: 3,463.83 | G7: 2,771.25 | H7: 1,173.69 | I7: 1,039.72 | K7: 557.84 | L7: 470.96 | M7: 295.50 | O7: 138.52 | P7: 18.47 | Q7: 18.47 | R7: 221.63
D8: 423001 | E8: 岳阳县自然资源局 | F8: 3,463.83 | G8: 2,771.25 | H8: 1,173.69 | I8: 1,039.72 | K8: 557.84 | L8: 470.96 | M8: 295.50 | O8: 138.52 | P8: 18.47 | Q8: 18.47 | R8: 221.63
A9: 208 | B9: 05 | C9: 05 | D9: 423001 | E9: 机关事业单位基本养老保险缴费支出 | F9: 295.50 | L9: 295.50 | M9: 295.50
A10: 208 | B10: 99 | C10: 99 | D10: 423001 | E10: 其他社会保障和就业支出 | F10: 18.47 | L10: 18.47 | Q10: 18.47
A11: 210 | B11: 11 | C11: 01 | D11: 423001 | E11: 行政单位医疗 | F11: 156.99 | L11: 156.99 | O11: 138.52 | P11: 18.47
A12: 220 | B12: 01 | C12: 01 | D12: 423001 | E12: 行政运行 | F12: 2,771.25 | G12: 2,771.25 | H12: 1,173.69 | I12: 1,039.72 | K12: 557.84
A13: 221 | B13: 02 | C13: 01 | D13: 423001 | E13: 住房公积金 | F13: 221.63 | R13: 221.63

Sheet 11个人家庭(政府预算)
A2: 一般公共预算基本支出表--人员经费(对个人和家庭的补助)(按政府预算经济分类)
A3: 单位：423001-岳阳县自然资源局 | J3: 金额单位：万元
A4: 功能科目 | D4: 单位代码 | E4: 单位名称（功能科目） | F4: 总计 | G4: 社会福利和救济 | H4: 助学金 | I4: 个人农业生产补贴 | J4: 离退休费 | K4: 其他对个人和家庭的补助
A5: 类 | B5: 款 | C5: 项
E6: 合计 | F6: 0.00
A10: 注：2022年未安排对个人和家庭的补助预算支出，故本表无数据

Sheet 12个人家庭
A2: 一般公共预算基本支出表--人员经费(对个人和家庭的补助)（按部门预算经济分类）
A3: 单位：423001-岳阳县自然资源局 | Q3: 金额单位：万元
A4: 功能科目 | D4: 单位代码 | E4: 单位名称（功能科目） | F4: 总计 | G4: 离休费 | H4: 退休费 | I4: 退职（役）费 | J4: 抚恤金 | K4: 生活补助 | L4: 救济费 | M4: 医疗费补助 | N4: 助学金 | O4: 奖励金 | P4: 代缴社会保险费 | Q4: 个人农业生产补贴 | R4: 其他对个人和家庭的补助
A5: 类 | B5: 款 | C5: 项
E6: 合计 | F6: 0.00
A10: 注：2022年未安排对个人和家庭的补助预算支出，故本表无数据

Sheet 13商品服务(政府预算)
A2: 一般公共预算基本支出表--公用经费(商品和服务支出)（按政府预算经济分类）
A3: 单位：423001-岳阳县自然资源局 | S3: 金额单位：万元
A4: 功能科目 | D4: 单位代码 | E4: 单位名称（功能科目） | F4: 总计 | G4: 机关商品和服务支出 | R4: 对事业单位经常性补助
A5: 类 | B5: 款 | C5: 项 | G5: 合计 | H5: 办公经费 | I5: 会议费 | J5: 培训费 | K5: 专用材料购置费 | L5: 委托业务费 | M5: 公务接待费 | N5: 因公出国（境）费用 | O5: 公务用车运行维护费 | P5: 维修(护)费 | Q5: 其他商品和服务支出 | R5: 合计 | S5: 商品和服务支出 | T5: 其他对事业单位补助
E6: 合计 | F6: 176.58 | G6: 176.58 | H6: 116.94 | I6: 5.00 | M6: 48.12 | P6: 6.52
D7: 423 | E7: 岳阳县自然资源局 | F7: 176.58 | G7: 176.58 | H7: 116.94 | I7: 5.00 | M7: 48.12 | P7: 6.52
D8: 423001 | E8: 岳阳县自然资源局 | F8: 176.58 | G8: 176.58 | H8: 116.94 | I8: 5.00 | M8: 48.12 | P8: 6.52
A9: 220 | B9: 01 | C9: 01 | D9: 423001 | E9: 行政运行 | F9: 176.58 | G9: 176.58 | H9: 116.94 | I9: 5.00 | M9: 48.12 | P9: 6.52

Sheet 14商品服务
A2: 一般公共预算基本支出表--公用经费(商品和服务支出)(按部门预算经济分类)
A3: 单位：423001-岳阳县自然资源局 | AF3: 金额单位：万元
A4: 功能科目 | D4: 单位代码 | E4: 单位名称（功能科目） | F4: 总 计 | G4: 办公费 | H4: 印刷费 | I4: 咨询费 | J4: 手续费 | K4: 水费 | L4: 电费 | M4: 邮电费 | N4: 取暖费 | O4: 物业管理费 | P4: 差旅费 | Q4: 因公出国（境）费用 | R4: 维修(护)费 | S4: 租赁费 | T4: 会议费 | U4: 培训费 | V4: 公务接待费 | W4: 专用材料费 | X4: 被装购置费 | Y4: 专用燃料费 | Z4: 劳务费 | AA4: 委托业务费 | AB4: 工会经费 | AC4: 福利费 | AD4: 公务用车运行维护费 | AE4: 其他交通费用 | AF4: 税金及附加费用 | AG4: 其他商品和服务支出
A5: 类 | B5: 款 | C5: 项
E6: 合计 | F6: 176.58 | G6: 29.34 | H6: 16.52 | K6: 4.89 | L6: 19.56 | M6: 7.51 | P6: 39.12 | R6: 6.52 | T6: 5.00 | V6: 48.12
D7: 423 | E7: 岳阳县自然资源局 | F7: 176.58 | G7: 29.34 | H7: 16.52 | K7: 4.89 | L7: 19.56 | M7: 7.51 | P7: 39.12 | R7: 6.52 | T7: 5.00 | V7: 48.12
D8: 423001 | E8: 岳阳县自然资源局 | F8: 176.58 | G8: 29.34 | H8: 16.52 | K8: 4.89 | L8: 19.56 | M8: 7.51 | P8: 39.12 | R8: 6.52 | T8: 5.00 | V8: 48.12
A9: 220 | B9: 01 | C9: 01 | D9: 423001 | E9: 行政运行 | F9: 176.58 | G9: 29.34 | H9: 16.52 | K9: 4.89 | L9: 19.56 | M9: 7.51 | P9: 39.12 | R9: 6.52 | T9: 5.00 | V9: 48.12

Sheet 15三公
A2: 一般公共预算“三公”经费支出表
A3: 单位：423001-岳阳县自然资源局 | G3: 金额单位：万元
A4: 单位编码 | B4: 单位名称 | C4: “三公”经费合计 | D4: 因公出国（境）费 | E4: 公务用车购置及运行费 | H4: 公务接待费
E5: 小计 | F5: 公务用车购置费 | G5: 公务用车运行费
B6: 合计 | C6: 48.12 | H6: 48.12
A7: 423 | B7: 岳阳县自然资源局 | C7: 48.12 | H7: 48.12
A8: 423001 | B8: 岳阳县自然资源局 | C8: 48.12 | H8: 48.12

Sheet 16政府性基金
A2: 政府性基金预算支出表
A3: 单位：423001-岳阳县自然资源局 | G3: 金额单位：万元
A4: 科目编码 | B4: 科目名称 | C4: 合计 | D4: 本年政府性基金预算支出 | H4: 项目支出
D5: 小计 | E5: 人员经费 | G5: 公用经费
E6: 工资福利支出 | F6: 对个人和家庭的补助
B7: 合计 | C7: 0.00
A13: 说明：2022年未安排政府性基金预算支出，故本表无数据

Sheet 17政府性基金(政府预算)
A2: 政府性基金预算支出分类汇总表（按政府预算经济分类）
A3: 单位：423001-岳阳县自然资源局 | S3: 金额单位：万元
A4: 功能科目 | D4: 单位代码 | E4: 单位名称（功能科目） | F4: 总 计 | G4: 机关工资福利支出 | H4: 机关商品和服务支出 | I4: 机关资本性支出(一) | J4: 机关资本性支出(二) | K4: 对事业单位经常性补助 | L4: 对事业单位资本性补助 | M4: 对企业补助 | N4: 对企业资本性支出 | O4: 对个人和家庭的补助 | P4: 对社会保障基金补助 | Q4: 债务利息及费用支出 | R4: 债务还本支出 | S4: 转移性支出 | T4: 其他支出
A5: 类 | B5: 款 | C5: 项
E6: 合计 | F6: 0.00
A10: 说明：2022年未安排政府性基金预算支出，故本表无数据

Sheet 18政府性基金（部门预算）
A2: 政府性基金预算支出分类汇总表（按部门预算经济分类）
A3: 单位：423001-岳阳县自然资源局 | P3: 金额单位：万元
A4: 功能科目 | D4: 单位代码 | E4: 单位名称（功能科目） | F4: 总 计 | G4: 基本支出 | K4: 项目支出
A5: 类 | B5: 款 | C5: 项 | G5: 合计 | H5: 工资福利支出 | I5: 一般商品和服务支出 | J5: 对个人和家庭的补助 | K5: 合计 | L5: 按项目管理的商品和服务支出 | M5: 按项目管理的对个人和家庭的补助 | N5: 债务利息及费用支出 | O5: 资本性支出（基本建设） | P5: 资本性支出 | Q5: 对企业补助（基本建设） | R5: 对企业补助 | S5: 对社会保障基金补助 | T5: 其他支出
E6: 合计 | F6: 0.00
A10: 说明：2022年未安排政府性基金预算支出，故本表无数据

Sheet 19国有资本经营预算
A2: 国有资本经营预算支出表
A3: 单位：423001-岳阳县自然资源局 | H3: 金额单位：万元
A4: 科目编码 | B4: 科目名称 | C4: 合计 | D4: 本年国有资本经营预算支出 | H4: 项目支出
D5: 小计 | E5: 人员经费 | G5: 公用经费
E6: 工资福利支出 | F6: 对个人和家庭的补助
B7: 合计 | C7: 0.00
A13: 说明：2022年未安排国有资本经营预算支出，故本表无数据

Sheet 20财政专户管理资金
A2: 财政专户管理资金预算支出表
A3: 单位：423001-岳阳县自然资源局 | H3: 金额单位：万元
A4: 科目编码 | B4: 科目名称 | C4: 合计 | D4: 本年财政专户管理资金预算支出 | H4: 项目支出
D5: 小计 | E5: 人员经费 | G5: 公用经费
E6: 工资福利支出 | F6: 对个人和家庭的补助
B7: 合计 | C7: 0.00
A13: 说明：2022年未安排财政专户管理资金预算支出，故本表无数据

Sheet 21专项清单
A2: 专项资金预算汇总表
A3: 单位：423001-岳阳县自然资源局 | N3: 金额单位：万元
A4: 单位代码 | C4: 单位名称（专项名称） | D4: 预算额度 | N4: 预算编制方式
D5: 总计 | E5: 一般公共预算 | K5: 政府性基金 | L5: 国有资本经营预算 | M5: 社会保险基金预算资金 | N5: 编入部门预算金额 | O5: 财政代编金额
E6: 一般公共预算小计 | F6: 经费拨款 | G6: 纳入一般公共预算管理的非税收入 | H6: 一般债券 | I6: 外国政府和国际组织贷款 | J6: 外国政府和国际组织赠款
C7: 合计 | D7: 520.00 | E7: 520.00 | G7: 520.00 | N7: 520.00
A8: 423 | C8: 岳阳县自然资源局 | D8: 520.00 | E8: 520.00 | G8: 520.00 | N8: 520.00
A9: 423001 | B9: 运转其他类安全生产专项经费 | C9: 安全生产专项经费 | D9: 10.00 | E9: 10.00 | G9: 10.00 | N9: 10.00
A10: 423001 | B10: 运转其他类大规委会日常工作经费 | C10: 大规委会日常工作经费 | D10: 10.00 | E10: 10.00 | G10: 10.00 | N10: 10.00
A11: 423001 | B11: 运转其他类地质灾害巡查经费 | C11: 地质灾害巡查经费 | D11: 30.00 | E11: 30.00 | G11: 30.00 | N11: 30.00
A12: 423001 | B12: 运转其他类非税收入执收经费 | C12: 非税收入执收经费 | D12: 240.00 | E12: 240.00 | G12: 240.00 | N12: 240.00
A13: 423001 | B13: 运转其他类耕地保护专项 | C13: 耕地保护专项 | D13: 40.00 | E13: 40.00 | G13: 40.00 | N13: 40.00
A14: 423001 | B14: 运转其他类空间规划基础工作经费 | C14: 空间规划基础工作经费 | D14: 40.00 | E14: 40.00 | G14: 40.00 | N14: 40.00
A15: 423001 | B15: 运转其他类控建拆违专项 | C15: 控建拆违专项 | D15: 40.00 | E15: 40.00 | G15: 40.00 | N15: 40.00
A16: 423001 | B16: 运转其他类矿产资源保护经费 | C16: 矿产资源保护经费 | D16: 30.00 | E16: 30.00 | G16: 30.00 | N16: 30.00
A17: 423001 | B17: 运转其他类卫片执法检查专项 | C17: 卫片执法检查专项 | D17: 50.00 | E17: 50.00 | G17: 50.00 | N17: 50.00
A18: 423001 | B18: 运转其他类信息化建设经费 | C18: 信息化建设经费 | D18: 30.00 | E18: 30.00 | G18: 30.00 | N18: 30.00

Sheet 22项目支出绩效目标表
C2: 项目支出绩效目标表
A3: 单位：423001-岳阳县自然资源局 | L3: 金额单位：万元
A4: 单位代码 | B4: 单位（专项）名称 | C4: 资金总额 | D4: 实施期绩效目标 | E4: 绩效指标
E5: 一级指标 | F5: 二级指标 | G5: 三级指标 | H5: 指标值 | I5: 指标值内容 | J5: 评（扣分标准） | K5: 度量单位 | L5: 指标值类型 | M5: 备注
A6: 423001 | B6: 岳阳县自然资源局 | C6: 520.00
A7: 423001 | B7: 安全生产专项经费 | C7: 10.00 | D7: 安全生产 | E7: 效益指标 | F7: 生态效益指标 | G7: 无 | H7: 无 | I7: 无 | J7: 无 | K7: 无
F8: 社会效益指标 | G8: 安全生产 | H8: 良好 | I8: 确保安全生产 | J8: 按指标评分标准扣分 | K8: 无 | L8: 定性
F9: 经济效益指标 | G9: 降低社会经济损失 | H9: 良好 | I9: 依法开展安全生产，减少或降低社会经济损失 | J9: 按指标评分标准扣分 | K9: 无 | L9: 定性
E10: 产出指标 | F10: 时效指标 | G10: 2022 | H10: 1年 | I10: 2022年1-12月 | J10: 按指标评分标准扣分 | K10: 年 | L10: 定量
F11: 数量指标 | G11: 无 | H11: 无 | I11: 无 | J11: 无 | K11: 无
F12: 生态环境成本指标 | G12: 无 | H12: 无 | I12: 无 | J12: 无 | K12: 无
F13: 社会成本指标 | G13: 无 | H13: 无 | I13: 无 | J13: 无 | K13: 无
F14: 经济成本指标 | G14: 预算控制数 | H14: 100000 | I14: 安全生产经费 | J14: 按指标评分标准扣分 | K14: 元 | L14: ≤
F15: 质量指标 | G15: 无 | H15: 无 | I15: 无 | J15: 无 | K15: 无
E16: 满意度指标 | F16: 服务对象满意度指标 | G16: 服务对象满意度 | H16: ≥95% | I16: 满意 | J16: 按指标评分标准扣分 | K16: % | L16: ≥
A17: 423001 | B17: 大规委会日常工作经费 | C17: 10.00 | D17: 大规委会日常工作经费 | E17: 满意度指标 | F17: 服务对象满意度指标 | G17: 服务对象满意度 | H17: ≥98% | I17: 满意 | J17: 按指标评分标准扣分 | K17: % | L17: ≥
E18: 效益指标 | F18: 生态效益指标 | G18: 无 | H18: 无 | I18: 无 | J18: 无 | K18: 无
F19: 社会效益指标 | G19: 及时调整规划 | H19: 100% | I19: 按照现状及时调整规划 | J19: 按指标评分标准扣分 | K19: % | L19: 定量
F20: 经济效益指标 | G20: 无 | H20: 无 | I20: 无 | J20: 无 | K20: 无 | L20: 无
E21: 产出指标 | F21: 时效指标 | G21: 2022 | H21: 1年 | I21: 2022年1-12月 | J21: 按指标评分标准扣分 | K21: 年 | L21: 定量
F22: 质量指标 | G22: 无 | H22: 无 | I22: 无 | J22: 无 | K22: 无
F23: 数量指标 | G23: 规委会议 | H23: 3 | I23: 召开规委专项会议 | J23: 按指标评分标准扣分 | K23: 次 | L23: 定量
F24: 生态环境成本指标 | G24: 无 | H24: 无 | I24: 无 | J24: 无 | K24: 无
F25: 经济成本指标 | G25: 预算控制数 | H25: ≤100000 | I25: 日常工作经费 | J25: 按指标评分标准扣分 | K25: 元 | L25: ≤
F26: 社会成本指标 | G26: 无 | H26: 无 | I26: 无 | J26: 无 | K26: 无 | L26: 定量
A27: 423001 | B27: 地质灾害巡查经费 | C27: 30.00 | D27: 地质灾害巡查 | E27: 产出指标 | F27: 经济成本指标 | G27: 预算控制数 | H27: 300000 | I27: 地质灾害巡查经费 | J27: 指标评分标准扣分 | K27: 元 | L27: ≤
F28: 社会成本指标 | G28: 无 | H28: 无 | I28: 无 | J28: 无 | K28: 无
F29: 生态环境成本指标 | G29: 无 | H29: 无 | I29: 无 | J29: 无 | K29: 无
F30: 数量指标 | G30: 乡镇个数 | H30: ≤15 | I30: 地质灾害巡查涉及范围 | J30: 指标评分标准扣分 | K30: 个 | L30: ≤
F31: 时效指标 | G31: 20022 | H31: 1年 | I31: 2022年1-12月 | J31: 指标评分标准扣分 | K31: 年 | L31: 定量
F32: 质量指标 | G32: 无 | H32: 无 | I32: 无 | J32: 无 | K32: 无
E33: 效益指标 | F33: 经济效益指标 | G33: 降低群众财产损失 | H33: ≥200万元 | I33: 及时预防地质灾害，降低人民群众财产损失 | J33: 指标评分标准扣分 | K33: 元 | L33: ≥
F34: 社会效益指标 | G34: 保证地质灾害区域人身安全 | H34: 良好 | I34: 保证地质灾害防治区域人民群众的财产损失和人身安全 | J34: 指标评分标准扣分 | K34: 无 | L34: 定性
F35: 生态效益指标 | G35: 无 | H35: 无 | I35: 无 | J35: 无 | K35: 无
E36: 满意度指标 | F36: 服务对象满意度指标 | G36: 服务对象满意度 | H36: ≥95% | I36: 满意 | J36: 指标评分标准扣分 | K36: % | L36: ≥
A37: 423001 | B37: 非税收入执收经费 | C37: 240.00 | D37: 设备添置和人员经费等 | E37: 产出指标 | F37: 社会成本指标 | G37: 无 | H37: 无 | I37: 无 | J37: 无 | K37: 无
F38: 生态环境成本指标 | G38: 无 | H38: 无 | I38: 无 | J38: 无 | K38: 无
F39: 数量指标 | G39: 无 | H39: 无 | I39: 无 | J39: 无 | K39: 无
F40: 经济成本指标 | G40: 预算控制数 | H40: 2400000 | I40: 收费和人员费用成本经费 | J40: 指标评分标准扣分 | K40: 元 | L40: ≤
F41: 质量指标 | G41: 无 | H41: 无 | I41: 无 | J41: 无 | K41: 无
F42: 时效指标 | G42: 2022 | H42: 1年 | I42: 2022年1-12月 | J42: 指标评分标准扣分 | K42: 年 | L42: 定量
E43: 效益指标 | F43: 经济效益指标 | G43: 增加非税收入 | H43: ≥200000 | I43: 增加非税收入数量 | J43: 指标评分标准扣分 | K43: 元 | L43: ≥
F44: 社会效益指标 | G44: 依法足额征收 | H44: 良好 | I44: 依法足额征收非税收入，减少税费流失 | J44: 指标评分标准扣分 | K44: 无 | L44: 定性
F45: 生态效益指标 | G45: 无 | H45: 无 | I45: 无 | J45: 无 | K45: 无
E46: 满意度指标 | F46: 服务对象满意度指标 | G46: 服务对象满意度 | H46: ≥98% | I46: 满意 | J46: 指标评分标准扣分 | K46: % | L46: ≥
A47: 423001 | B47: 耕地保护专项 | C47: 40.00 | D47: 耕地保护 | E47: 满意度指标 | F47: 服务对象满意度指标 | G47: 服务对象满意度 | H47: ≥95% | I47: 满意 | J47: 指标评分标准扣分 | K47: % | L47: ≥
E48: 效益指标 | F48: 生态效益指标 | G48: 无 | H48: 无 | I48: 无 | J48: 无 | K48: 无
F49: 社会效益指标 | G49: 耕地占补总量 | H49: 良好 | I49: 确保全县耕地占补总量平衡 | J49: 指标评分标准扣分 | K49: 无 | L49: 定性
F50: 经济效益指标 | G50: 提高农民农业收入 | H50: ≥200 | I50: 提高农民农业产量水平 | J50: 指标评分标准扣分 | K50: 元 | L50: ≥
E51: 产出指标 | F51: 经济成本指标 | G51: 预算控制数 | H51: 400000 | I51: 耕地保护经费 | J51: 指标评分标准扣分 | K51: 元 | L51: ≤
F52: 质量指标 | G52: 无 | H52: 无 | I52: 无 | J52: 无 | K52: 无
F53: 数量指标 | G53: 耕地数量 | H53: ≤0 | I53: 耕地数量总量减少 | J53: 指标评分标准扣分 | K53: 亩 | L53: ≤
F54: 生态环境成本指标 | G54: 无 | H54: 无 | I54: 无 | J54: 无 | K54: 无
F55: 社会成本指标 | G55: 无 | H55: 无 | I55: 无 | J55: 无 | K55: 无
F56: 时效指标 | G56: 2022 | H56: 1年 | I56: 2022年1-12月 | J56: 指标评分标准扣分 | K56: 年 | L56: 定量
A57: 423001 | B57: 空间规划基础工作经费 | C57: 40.00 | D57: 空间规划基础工作 | E57: 产出指标 | F57: 质量指标 | G57: 无 | H57: 无 | I57: 无 | J57: 无 | K57: 无
F58: 时效指标 | G58: 2022 | H58: 1年 | I58: 2022年1-12月 | J58: 指标评分标准扣分 | K58: 年 | L58: 定量
F59: 经济成本指标 | G59: 预算控制数 | H59: ≤400000 | I59: 空间规划经费 | J59: 指标评分标准扣分 | K59: 元 | L59: ≤
F60: 数量指标 | G60: 无 | H60: 无 | I60: 无 | J60: 无 | K60: 无
F61: 生态环境成本指标 | G61: 无 | H61: 无 | I61: 无 | J61: 无 | K61: 无
F62: 社会成本指标 | G62: 无 | H62: 无 | I62: 无 | J62: 无 | K62: 无
E63: 效益指标 | F63: 经济效益指标 | G63: 15年空间规划 | H63: 15 | I63: 做好全县15年空间规划 | J63: 指标评分标准扣分 | K63: 年 | L63: 定量
F64: 社会效益指标 | G64: 全县空间规划 | H64: 合法、合理、合规 | I64: 保证全县空间规划合法、合理、合规 | J64: 指标评分标准扣分 | K64: 年
F65: 生态效益指标 | G65: 无 | H65: 无 | I65: 无 | J65: 无 | K65: 无
E66: 满意度指标 | F66: 服务对象满意度指标 | G66: 服务对象满意度 | H66: ≥95% | I66: 满意 | J66: 指标评分标准扣分 | K66: % | L66: ≥
A67: 423001 | B67: 控建拆违专项 | C67: 40.00 | D67: 控建拆违 | E67: 产出指标 | F67: 社会成本指标 | G67: 无 | H67: 无 | I67: 无 | J67: 无 | K67: 无
F68: 生态环境成本指标 | G68: 无 | H68: 无 | I68: 无 | J68: 无 | K68: 无
F69: 数量指标 | G69: 控建拆违行动次数 | H69: 2 | I69: 控建拆违行动次数 | J69: 指标评分标准扣分 | K69: 次 | L69: ≥
F70: 质量指标 | G70: 无 | H70: 无 | I70: 无 | J70: 无 | K70: 无 | L70: 定量
F71: 经济成本指标 | G71: 预算控制数 | H71: ≤400000 | I71: 控建拆违经费 | J71: 指标评分标准扣分 | K71: 元 | L71: ≤
F72: 时效指标 | G72: 2022年度 | H72: 1年 | I72: 2022年1-12月 | J72: 指标评分标准扣分 | K72: 年 | L72: 定量
E73: 效益指标 | F73: 经济效益指标 | G73: 拆除违法建筑 | H73: ≥2000M2 | I73: 依法拆除违法建筑 | J73: 指标评分标准扣分 | K73: M2 | L73: ≥
F74: 社会效益指标 | G74: 控制违法建筑 | H74: 良好 | I74: 控制、拆除违法建筑，保持良好秩序 | J74: 指标评分标准扣分 | K74: 无
F75: 生态效益指标 | G75: 无 | H75: 无 | I75: 无 | J75: 无 | K75: 无
E76: 满意度指标 | F76: 服务对象满意度指标 | G76: 服务对象满意度 | H76: ≥95% | I76: 满意 | J76: 指标评分标准扣分 | K76: % | L76: ≥
A77: 423001 | B77: 矿产资源保护经费 | C77: 30.00 | D77: 矿产资源保护 | E77: 效益指标 | F77: 经济效益指标 | G77: 矿产资源违法开采率 | H77: ≥30% | I77: 合理降低矿产资源违法开采率 | J77: 指标评分标准扣分 | K77: % | L77: ≥
F78: 生态效益指标 | G78: 减少水土流失 | H78: 良好 | I78: 减少水土流失，保护生态环境 | J78: 指标评分标准扣分 | K78: 无 | L78: 定性
F79: 社会效益指标 | G79: 维护社会稳定 | H79: 良好 | I79: 依法打击违法开采，维护当地社会稳定 | J79: 指标评分标准扣分 | K79: 无 | L79: 定性
E80: 产出指标 | F80: 时效指标 | G80: 2022 | H80: 1年 | I80: 2022年1-12月 | J80: 指标评分标准扣分 | K80: 年 | L80: 定量
F81: 质量指标 | G81: 无 | H81: 无 | I81: 无 | J81: 无 | K81: 无
F82: 数量指标 | G82: 无 | H82: 无 | I82: 无 | J82: 无 | K82: 无
F83: 生态环境成本指标 | G83: 无 | H83: 无 | I83: 无 | J83: 无 | K83: 无
F84: 经济成本指标 | G84: 预算控制数 | H84: 300000 | I84: 矿产资源保护经费 | J84: 指标评分标准扣分 | K84: 元 | L84: ≤
F85: 社会成本指标 | G85: 无 | H85: 无 | I85: 无 | J85: 无 | K85: 无
E86: 满意度指标 | F86: 服务对象满意度指标 | G86: 服务对象满意度 | H86: ≥95% | I86: 满意 | J86: 指标评分标准扣分 | K86: % | L86: ≥
A87: 423001 | B87: 卫片执法检查专项 | C87: 50.00 | D87: 卫片执法检查 | E87: 满意度指标 | F87: 服务对象满意度指标 | G87: 服务对象满意度 | H87: ≥95% | I87: 满意 | J87: 按指标评分标准扣分 | K87: % | L87: ≥
E88: 产出指标 | F88: 经济成本指标 | G88: 预算控制数 | H88: ≤500000 | I88: 卫片执法检查经费 | J88: 按指标评分标准扣分 | K88: 元 | L88: ≤
F89: 社会成本指标 | G89: 无 | H89: 无 | I89: 无 | J89: 无 | K89: 无
F90: 生态环境成本指标 | G90: 无 | H90: 无 | I90: 无 | J90: 无 | K90: 无
F91: 数量指标 | G91: 卫片执法图斑 | H91: 50 | I91: 违法图斑 | J91: 按指标评分标准扣分 | K91: 个 | L91: ≥
F92: 质量指标 | G92: 无 | H92: 无 | I92: 无 | J92: 无 | K92: 无
F93: 时效指标 | G93: 2022 | H93: 1年 | I93: 2022年1-12月 | J93: 按指标评分标准扣分 | K93: 年 | L93: 定量
E94: 效益指标 | F94: 经济效益指标 | G94: 违法案件降低率 | H94: ≥ 30% | I94: 降低违法案件发生率 | J94: 按指标评分标准扣分 | K94: % | L94: ≥
F95: 社会效益指标 | G95: 违法案件结案率 | H95: ≥85% | I95: 保证及时办理违法案件，提高结案率 | J95: 按指标评分标准扣分 | K95: % | L95: ≥
F96: 生态效益指标 | G96: 无 | H96: 无 | I96: 无 | J96: 无 | K96: 无
A97: 423001 | B97: 信息化建设经费 | C97: 30.00 | D97: 信息化建设 | E97: 产出指标 | F97: 质量指标 | G97: 无 | H97: 无 | I97: 无 | J97: 无 | K97: 无
F98: 时效指标 | G98: 2022 | H98: 1年 | I98: 2022年1-12月 | J98: 2022 | K98: 年 | L98: 定量
F99: 数量指标 | G99: 资产配置 | H99: 5 | I99: 台 | J99: 指标评分标准扣分 | K99: 台 | L99: ≥
F100: 经济成本指标 | G100: 预算控制数 | H100: ≤300000 | I100: 信息化建设经费 | J100: 指标评分标准扣分 | K100: 元 | L100: ≤
F101: 社会成本指标 | G101: 无 | H101: 无 | I101: 无 | J101: 无 | K101: 无
F102: 生态环境成本指标 | G102: 无 | H102: 无 | I102: 无 | J102: 无 | K102: 无
E103: 效益指标 | F103: 经济效益指标 | G103: 无 | H103: 无 | I103: 无 | J103: 无 | K103: 无
F104: 社会效益指标 | G104: 信息化水平 | H104: 提高信息化管理水平 | I104: 提高信息化建设质量 | J104: 指标评分标准扣分 | K104: 无
F105: 生态效益指标 | G105: 无 | H105: 无 | I105: 无 | J105: 无 | K105: 无
E106: 满意度指标 | F106: 服务对象满意度指标 | G106: 服务对象满意度 | H106: ≥95% | I106: 满意 | J106: 指标评分标准扣分 | K106: % | L106: ≥

Sheet 23整体支出绩效目标表
A1: 整体支出绩效目标表
A2: 单位：岳阳县自然资源局 | Q2: 金额单位：万元
A3: 单位编码 | B3: 单位名称 | C3: 年度预算申请 | J3: 整体绩效目标 | K3: 部门整体支出年度绩效目标
C4: 资金总额 | D4: 按收入性质分 | H4: 按支出性质分
D5: 一般公共预算 | E5: 政府性基金拨款 | F5: 财政专户管理资金 | G5: 其他资金 | H5: 基本支出 | I5: 项目支出 | K5: 一级指标 | L5: 二级指标 | M5: 三级指标 | N5: 指标值类型 | O5: 指标值 | P5: 度量单位 | Q5: 指标值说明 | R5: 备注
A6: 423001 | B6: 岳阳县自然资源局 | C6: 4,160.41 | D6: 4,160.41 | H6: 3,640.41 | I6: 520.00 | J6: 依法履行全民所有土地、矿产、森林、草地、湿地、水等自然资源资产所有者职责、国土空间用途管制职责；负责自然资源调查监测评价；负责自然资源统一确权登记工作；负责自然资源资产有偿使用工作；负责自然资源的合理开发利用；负责建立空间规划体系并监督实施；负责制定国土空间规划编制计划和近期建设规划，制定土地利用及储备供应、矿产资源保护利用、基础测绘、新增建设用地等年度计划并组织实施，参与城市发展年度建设计划及实施工作；负责城乡规划区内的规划实施；负责统筹国土空间生态修复；负责组织实施最严格的耕地保护制度；负责管理地质勘查行业和全县地质工作；负责地质灾害预防和治理；负责矿产资源管理工作；负责测绘地理信息管理工作；负责贯彻执行征地拆迁有关法律法规，根据相关法律法规和规范性文件拟定有关征地拆迁安置的制度和规定及配套办法；根据授权，负责对乡镇政府及相关部门落实县委、县政府关于自然资源、国土空间规划重大政策、决策部署及法规规章执行情况进行督察；承担县国土空间规划委员会办公室的日常工作；承担县禁违拆违治违工作领导小组办公室的日常工作；负责自然资源领域关于国土、规划、矿产、征拆等方面的行政执法；完成县委和县政府交办的其他任务。 | K6: 产出指标 | L6: 重点工作任务完成 | M6: 土地出让收入 | N6: ≥ | O6: 400000000 | P6: 元 | Q6: 全年土地出让目标任务
L7: 履职目标实现 | M7: 公务卡刷卡率 | N7: ≥ | O7: 60 | P7: % | Q7: 公务卡刷卡率
M8: 固定资产利用率 | N8: ≥ | O8: 100 | P8: % | Q8: 固定资产利用率
M9: 土地出让率 | N9: 定性 | O9: 合规 | Q9: 达标
M10: 违法案件查处结案率 | N10: ≥ | O10: 90 | P10: % | Q10: 违法案件查处结案率
M11: 专项资金到位率 | N11: ≥ | O11: 90 | P11: % | Q11: 专项资金到位率
K12: 效益指标 | L12: 履职效益 | M12: 可持续影响（指标） | N12: 定性 | O12: 合规 | Q12: 通过合理开发和利用土地、矿产资源，节约、集约利用土地，优化配置和合理利用了国土、矿产资源，耕地得到严格保护，保证了农民的切身利益，通过土地整理，改善了农民的生产和生活条件，通过地质灾害防治和治理，消除了地质灾害隐患，同时使受灾区及时得到了有效治理，保证了人民群众的生命和财产安全。
M13: 生态效益（指标） | N13: 定性 | O13: 合规 | Q13: 耕地得到严格保护，通过土地整理使农田水利设施得到明显改善，通过地质灾害防治和治理，消除了地质灾害隐患，同时使受灾区及时得到了有效治理，保证了人民群众的生命和财产安全。
M14: 社会效益（指标） | N14: 定性 | O14: 合规 | Q14: 保护与合理利用土地、矿产资源等自然资源，保持全县土地利用的良性循环，确保全县耕地、建设用地的动态平衡。
M15: 经济效益（指标） | N15: 定性 | O15: 合规 | Q15: 土地收益效果显著且稳定增长，矿产资源交易市场规范且得到合理开发利用。
L16: 满意度 | M16: 社会公众或服务对象满意度 | N16: ≥ | O16: 95 | P16: % | Q16: 社会公众或服务对象满意度
